bitfinex/quotes_SOLUSD_20220210
["timestamp","ask_amount","ask_price","bid_price","bid_amount"]
[1644503626487,1.29830647,108.72,108.59,4.601]
[1644503626791,41.78743177,108.71,108.6,16.98507263]
[1644503627390,41.78743177,108.71,108.6,11.25]
[1644503627587,25.62835,108.7,108.6,11.25]
[1644503627787,25.87835,108.7,108.6,11.25]
[1644503627988,14.0616,108.7,108.6,11.25]
[1644503628387,37.26944478,108.69,108.6,11.25]
[1644503628589,45.60357811,108.67,108.6,11.25]
[1644503629490,45.85357811,108.67,108.56,11.25]
[1644503629694,45.85357811,108.67,108.53,15.852]
[1644503630092,11.821101,108.66,108.53,4.602]
[1644503630293,12.071101,108.66,108.53,4.602]
[1644503630694,13.819,108.64,108.53,4.602]
[1644503631093,47.15517391,108.63,108.53,39.02360262]
[1644503631296,47.15517391,108.63,108.54,11.25]
[1644503631995,47.15517391,108.63,108.5,15.7438843]
[1644503632194,47.15517391,108.63,108.49,11.25]
[1644503632394,11.25,108.62,108.46,11.25]
[1644503632598,13.8288,108.56,108.44,11.25]
[1644503632994,14.0788,108.56,108.44,11.25]
[1644503633224,13.8288,108.56,108.44,42.23726335]
[1644503633399,46.096,108.59,108.44,43.88682274]
[1644503633696,43.56387279,108.58,108.45,23.89522223]
[1644503633897,43.56387279,108.58,108.45,35.14522223]
[1644503634098,1.29830647,108.63,108.47,2.95384679]
[1644503634296,1.29830647,108.63,108.48,15.856]
[1644503634502,1.29830647,108.64,108.48,48.49282274]
[1644503634700,1.29830647,108.65,108.49,32.63682274]
[1644503634997,97.26952801,108.63,108.48,4.606]
[1644503635198,46.0864,108.61,108.46,11.25]
[1644503635498,47.38470647,108.61,108.44,11.25]
[1644503635700,47.38470647,108.61,108.45,4.607]
[1644503635898,13.826,108.59,108.46,11.25]
[1644503636098,38.60230326,108.58,108.48,21.9871693]
[1644503636498,38.60230326,108.58,108.47,4.607]
[1644503636698,38.60230326,108.58,108.46,26.25898942]
[1644503636699,38.60230326,108.58,108.46,11.25]
[1644503636899,23.60230326,108.58,108.46,11.25]
[1644503637299,23.60230326,108.58,108.46,12.89955939]
[1644503637500,23.85230326,108.58,108.47,34.70590355]
[1644503637700,23.85230326,108.58,108.46,26.25898942]
[1644503638302,37.67840326,108.58,108.46,11.25]
[1644503638502,39.9096248,108.58,108.46,11.25]
[1644503638700,41.20793127,108.58,108.46,46.39518802]
[1644503638903,38.97670973,108.58,108.46,11.25]
[1644503639101,41.20793127,108.58,108.43,27.55245763]
[1644503639302,41.20793127,108.58,108.43,11.25]
[1644503639502,38.97670973,108.58,108.43,11.25]
[1644503639804,38.72670973,108.58,108.44,29.56497288]
[1644503640001,38.72670973,108.58,108.45,11.25]
[1644503640202,16.643661,108.57,108.46,12.28409614]
[1644503640401,16.643661,108.57,108.46,0.25]
[1644503640604,42.27153,108.57,108.45,11.25]
[1644503640809,44.50275154,108.57,108.45,11.25]
[1644503641001,16.629789,108.56,108.45,11.25]
[1644503641203,35.621517,108.56,108.42,1.29346821]
[1644503641503,47.71750203,108.55,108.41,114.3]
[1644503641705,1.29830647,108.54,108.41,10.71206884]
[1644503641902,46.77574257,108.53,108.41,10.71206884]
[1644503642108,46.77574257,108.53,108.41,125.01206884]
[1644503642409,46.77574257,108.53,108.41,137.55553705]
[1644503642907,46.77574257,108.53,108.41,12.79346821]
[1644503643106,47.02574257,108.53,108.41,11.5]
[1644503643307,35.37215054,108.52,108.39,1.29346821]
[1644503643507,2.23122154,108.52,108.37,12.54346821]
[1644503643807,2.23122154,108.51,108.37,12.54346821]
[1644503644008,13.8375,108.49,108.37,11.25]
[1644503644210,13.8375,108.49,108.35,545.75088265]
[1644503644408,13.48122154,108.48,108.34,4.61]
[1644503644808,2.23122154,108.47,108.34,4.61]
[1644503645010,11.25,108.46,108.34,4.61]
[1644503645207,45.23638623,108.45,108.34,4.61]
[1644503645411,13.8474,108.44,108.34,4.61]
[1644503645807,14.0974,108.44,108.34,4.61]
[1644503646009,25.3474,108.44,108.34,4.61]
[1644503646208,25.0974,108.44,108.34,4.61]
[1644503646410,37.04434275,108.43,108.34,4.61]
[1644503646708,37.04434275,108.43,108.32,11.25]
[1644503646909,13.8417,108.46,108.33,4.613]
[1644503647109,11.25,108.5,108.33,15.863]
[1644503647312,11.25,108.5,108.34,13.88122949]
[1644503647513,11.25,108.5,108.35,15.861]
[1644503647710,11.25,108.5,108.35,29.6977]
[1644503647912,25.0867,108.5,108.35,16.111]
[1644503648109,40.49213352,108.49,108.35,52.18293797]
[1644503648328,40.49213352,108.49,108.35,11.25]
[1644503648528,2.23122154,108.48,108.35,11.25]
[1644503648728,2.23122154,108.48,108.37,114.3]
[1644503648927,16.07052154,108.48,108.32,11.25]
[1644503649127,27.32052154,108.48,108.31,1.29346821]
[1644503649328,34.52928581,108.47,108.29,17.15546821]
[1644503649528,48.01050735,108.47,108.29,23.15546821]
[1644503649727,48.26050735,108.47,108.29,12.54346821]
[1644503649927,2.23122154,108.46,108.29,11.25]
[1644503650133,11.25,108.45,108.26,126.84346821]
[1644503650429,48.40301987,108.42,108.26,11.25]
[1644503650631,46.93594784,108.4,108.26,40.97035098]
[1644503650831,58.18594784,108.4,108.26,40.97035098]
[1644503651231,58.43594784,108.4,108.26,40.97035098]
[1644503651633,13.8556,108.38,108.26,11.25]
[1644503651833,14.1056,108.38,108.24,1.29346821]
[1644503652131,2.23122154,108.37,108.22,6.565]
[1644503652430,0.25,108.37,108.21,15.866]
[1644503652732,48.64049175,108.37,108.21,46.69872293]
[1644503652930,13.8579,108.34,108.21,46.69872293]
[1644503653129,48.75285925,108.35,108.22,9.97860189]
[1644503653333,48.75285925,108.35,108.23,22.26634609]
[1644503653529,48.75285925,108.35,108.23,28.54442752]
[1644503653729,48.75285925,108.35,108.24,1.66108143]
[1644503653929,48.75285925,108.35,108.25,30.08648958]
[1644503654130,11.25,108.41,108.26,4.616]
[1644503654430,11.25,108.43,108.26,17.77708143]
[1644503654630,11.25,108.43,108.27,1.66108143]
[1644503654831,11.5,108.43,108.27,1.66108143]
[1644503655130,13.8501,108.38,108.26,15.866]
[1644503655333,14.1001,108.38,108.24,15.865]
[1644503655530,14.1001,108.38,108.24,11.25]
[1644503655732,14.1001,108.38,108.22,6.27708143]
[1644503655933,13.48122154,108.37,108.2,12.57366906]
[1644503656133,42.15177347,108.36,108.2,9.61911942]
[1644503656333,13.8577,108.33,108.21,6.88766893]
[1644503656533,47.84909205,108.32,108.21,6.88766893]
[1644503657234,11.25,108.39,108.21,25.79875036]
[1644503657435,25.0984,108.39,108.22,4.616]
[1644503657837,25.0984,108.39,108.22,21.866]
[1644503658036,47.40197255,108.38,108.22,15.866]
[1644503658235,47.40197255,108.38,108.22,11.25]
[1644503658236,11.25,108.37,108.22,11.25]
[1644503658434,13.48122154,108.37,108.22,11.25]
[1644503658635,13.857,108.34,108.22,11.25]
[1644503658836,14.107,108.34,108.22,15.867]
[1644503659236,44.24553629,108.33,108.23,37.54383181]
[1644503659439,44.24553629,108.33,108.23,48.79383181]
[1644503659637,44.24553629,108.33,108.23,54.79383181]
[1644503659836,44.24553629,108.33,108.24,13.8511]
[1644503660238,44.24553629,108.33,108.25,4.30523721]
[1644503660639,44.24553629,108.33,108.22,4.617]
[1644503660837,44.24553629,108.33,108.22,18.4707]
[1644503661038,44.24553629,108.33,108.22,4.617]
[1644503661238,2.23122154,108.32,108.22,4.617]
[1644503661539,44.46879903,108.31,108.19,1.29346821]
[1644503661740,13.8611,108.29,108.18,5.91146821]
[1644503662039,13.8611,108.29,108.14,12.54346821]
[1644503662239,14.1111,108.29,108.14,17.16346821]
[1644503662442,14.1111,108.29,108.16,9.62490645]
[1644503662639,40.4587321,108.28,108.17,38.38436093]
[1644503662839,40.4587321,108.28,108.17,49.63436093]
[1644503663041,40.4587321,108.28,108.18,4.62]
[1644503663340,13.9582,108.4,108.19,12.54346821]
[1644503663538,13.9582,108.4,108.2,4.617]
[1644503663739,46.1727,108.39,108.24,13.8514]
[1644503663940,13.851,108.37,108.23,11.25]
[1644503664138,58.17258315,108.37,108.23,11.25]
[1644503664341,22.897043,108.36,108.23,11.5]
[1644503664741,46.192,108.34,108.23,0.25]
[1644503664942,22.853284,108.33,108.23,0.25]
[1644503665240,36.708884,108.33,108.2,16.117]
[1644503665441,43.27023166,108.32,108.2,52.5166385]
[1644503665642,43.27023166,108.32,108.2,11.5]
[1644503665841,43.27023166,108.32,108.2,11.25]
[1644503666742,57.12753166,108.32,108.2,11.25]
[1644503666943,59.3587532,108.32,108.2,11.25]
[1644503667143,153.3487532,108.32,108.2,11.5]
[1644503667346,153.0987532,108.32,108.2,11.25]
[1644503667549,57.12753166,108.32,108.17,126.84346821]
[1644503667746,57.12753166,108.32,108.18,35.38134113]
[1644503667947,57.12753166,108.32,108.21,1.6611299]
[1644503668151,57.12753166,108.32,108.2,12.3801961]
[1644503668345,57.12753166,108.32,108.2,24.92366431]
[1644503668845,57.12753166,108.32,108.2,31.17366431]
[1644503669044,57.12753166,108.32,108.2,18.54346821]
[1644503669246,57.12753166,108.32,108.2,12.54346821]
[1644503669461,57.12753166,108.32,108.2,11.25]
[1644503669647,2.23122154,108.31,108.18,1.29346821]
[1644503669847,13.8657,108.27,108.17,114.3]
[1644503670046,35.98687092,108.26,108.17,115.59346821]
[1644503670447,35.98687092,108.26,108.17,1.29346821]
[1644503670650,35.98687092,108.26,108.17,5.56553027]
[1644503670848,35.98687092,108.26,108.18,1.29346821]
[1644503671049,11.25,108.33,108.18,1.29346821]
[1644503671248,11.25,108.35,108.19,5.91146821]
[1644503671449,46.199,108.32,108.2,1.29346821]
[1644503671848,46.199,108.32,108.2,1.54346821]
[1644503672048,46.66825166,108.31,108.19,31.82718069]
[1644503672246,46.66825166,108.31,108.18,12.54346821]
[1644503672646,46.91825166,108.31,108.19,1.29346821]
[1644503672846,46.91825166,108.31,108.18,12.54346821]
[1644503673352,13.8639,108.28,108.18,12.54346821]
[1644503673549,13.8639,108.28,108.16,10.91837466]
[1644503673749,11.796349,108.27,108.16,9.62490645]
[1644503674148,12.046349,108.27,108.16,10.91837466]
[1644503674349,48.94662853,108.26,108.16,42.74576477]
[1644503674550,35.08192853,108.26,108.16,53.99576477]
[1644503674750,11.25,108.34,108.17,1.29346821]
[1644503674951,26.555287,108.33,108.2,1.29346821]
[1644503675151,23.104719,108.32,108.21,11.25]
[1644503675450,23.104719,108.31,108.21,18.79346821]
[1644503675749,39.82028247,108.31,108.21,26.39956821]
[1644503675952,39.82028247,108.31,108.21,1.29346821]
[1644503676150,39.82028247,108.31,108.19,1.29346821]
[1644503676351,3.494246,108.3,108.2,11.25]
[1644503676751,45.76621882,108.29,108.2,53.08651955]
[1644503676950,2.23122154,108.33,108.2,72.35668776]
[1644503677151,13.9275,108.37,108.21,1.29346821]
[1644503677454,13.9275,108.37,108.22,17.16046821]
[1644503677653,8.432959,108.36,108.22,15.867]
[1644503677952,43.00027032,108.35,108.23,1.26254947]
[1644503678154,8.432959,108.34,108.24,11.25]
[1644503678355,40.45643921,108.33,108.24,11.5]
[1644503678555,22.289759,108.32,108.24,11.5]
[1644503678751,8.432959,108.31,108.24,11.5]
[1644503679152,113.971453,108.31,108.24,11.25]
[1644503679352,54.1484665,108.3,108.21,1.29346821]
[1644503679551,54.1484665,108.3,108.22,3.08036733]
[1644503679552,42.3499725,108.3,108.22,3.08036733]
[1644503679752,13.8612,108.29,108.21,1.29346821]
[1644503679951,13.8612,108.29,108.19,25.109]
[1644503679952,13.8612,108.29,108.2,1.29346821]
[1644503680356,4.48991642,108.29,108.2,1.29346821]
[1644503680552,4.23991642,108.29,108.2,1.54346821]
[1644503680753,43.40743559,108.28,108.2,1.54346821]
[1644503681455,13.5655,108.34,108.21,131.0]
[1644503681656,2.58721282,108.39,108.22,15.867]
[1644503681853,2.58721282,108.39,108.22,39.05642593]
[1644503682055,0.00830647,108.36,108.27,1.29346821]
[1644503682253,0.00830647,108.42,108.28,15.866]
[1644503682455,47.00088837,108.43,108.32,1.95]
[1644503682657,2.58721282,108.49,108.33,15.863]
[1644503682854,2.58721282,108.51,108.36,1.95]
[1644503683055,16.42051282,108.53,108.37,29.6936]
[1644503683254,2.58721282,108.55,108.39,1.95]
[1644503683454,45.88737471,108.54,108.4,22.29213215]
[1644503683858,45.88737471,108.54,108.41,1.95]
[1644503684056,45.88737471,108.54,108.43,35.02281478]
[1644503684358,45.88737471,108.54,108.45,7.82625424]
[1644503684757,45.88737471,108.54,108.45,8.07625424]
[1644503684956,45.88737471,108.54,108.45,0.25]
[1644503685757,45.88737471,108.54,108.44,17.5]
[1644503685956,45.88737471,108.54,108.44,57.5885349]
[1644503687059,45.88737471,108.54,108.44,11.5]
[1644503687459,45.88737471,108.54,108.44,25.3254]
[1644503688059,45.88737471,108.54,108.45,33.36479705]
[1644503688259,45.88737471,108.54,108.47,9.48427197]
[1644503688460,45.88737471,108.54,108.47,9.752]
[1644503688667,2.23122154,108.53,108.4,23.05508859]
[1644503688860,2.23122154,108.53,108.41,11.25]
[1644503689360,2.23122154,108.53,108.38,11.25]
[1644503689561,42.70292223,108.52,108.39,32.76378588]
[1644503689762,56.78692223,108.52,108.39,33.01378588]
[1644503690064,59.01814377,108.52,108.39,33.01378588]
[1644503690263,59.01814377,108.52,108.39,0.25]
[1644503690462,59.01814377,108.52,108.38,11.25]
[1644503690662,70.26814377,108.52,108.38,11.25]
[1644503690862,70.26814377,108.52,108.36,4.609]
[1644503691063,84.29670101,108.52,108.36,4.859]
[1644503691267,70.26814377,108.52,108.36,4.859]
[1644503691462,70.26814377,108.52,108.36,10.16709568]
[1644503691662,68.03692223,108.52,108.36,21.41709568]
[1644503692462,67.78692223,108.52,108.36,21.41709568]
[1644503692862,67.78692223,108.52,108.36,17.05809568]
[1644503693063,161.52692223,108.52,108.36,17.05809568]
[1644503693463,70.01814377,108.52,108.36,11.5]
[1644503693767,70.71814377,108.52,108.32,21.1622309]
[1644503693963,70.71814377,108.52,108.33,11.25]
[1644503693964,13.8441,108.46,108.33,11.25]
[1644503694366,14.0941,108.46,108.33,11.25]
[1644503694564,39.10050342,108.45,108.33,11.25]
[1644503694765,39.35050342,108.45,108.33,20.04602267]
[1644503695164,39.10050342,108.45,108.33,20.29602267]
[1644503695366,11.25,108.52,108.34,17.98496685]
[1644503695566,13.9016,108.53,108.34,40.51497576]
[1644503695766,13.9016,108.53,108.35,42.68669418]
[1644503696065,13.9016,108.53,108.36,45.12512341]
[1644503696267,13.9016,108.53,108.37,11.25]
[1644503696465,44.388589,108.52,108.38,38.66304635]
[1644503696666,44.388589,108.52,108.4,8.79602267]
[1644503696864,44.388589,108.52,108.41,11.25]
[1644503697087,44.388589,108.52,108.42,34.05304635]
[1644503697286,44.388589,108.52,108.42,45.55304635]
[1644503698087,44.388589,108.52,108.42,11.5]
[1644503698487,44.388589,108.52,108.42,11.25]
[1644503698687,2.23122154,108.51,108.42,11.25]
[1644503698889,2.23122154,108.51,108.37,11.25]
[1644503699088,44.66864219,108.5,108.37,13.01780016]
[1644503699490,46.89986373,108.5,108.37,13.01780016]
[1644503699689,13.8371,108.49,108.37,13.01780016]
[1644503699890,44.66864219,108.5,108.37,46.38849994]
[1644503700088,44.66864219,108.5,108.37,46.63849994]
[1644503700290,44.66864219,108.5,108.37,46.38849994]
[1644503700989,58.50394219,108.5,108.37,60.22299994]
[1644503701288,58.75394219,108.5,108.37,60.22299994]
[1644503701989,44.66864219,108.5,108.37,69.55128152]
[1644503702190,44.66864219,108.5,108.37,217.77083178]
[1644503702490,14.1605,108.57,108.37,217.77083178]
[1644503702789,11.25,108.62,108.39,140.57]
[1644503702994,13.8254,108.58,108.45,13.8244]
[1644503703189,13.8254,108.58,108.46,11.25]
[1644503703390,13.8254,108.58,108.46,11.5]
[1644503703589,35.57733374,108.57,108.47,40.33714665]
[1644503703789,35.57733374,108.57,108.48,11.25]
[1644503703989,35.57733374,108.57,108.47,11.25]
[1644503704192,13.8286,108.55,108.45,11.25]
[1644503704593,35.57733374,108.57,108.45,11.25]
[1644503704793,46.02866257,108.55,108.46,37.47736242]
[1644503704994,11.25,108.63,108.47,11.25]
[1644503705293,11.25,108.63,108.47,11.5]
[1644503705493,14.07917654,108.61,108.47,11.5]
[1644503705695,11.847955,108.6,108.47,11.5]
[1644503705893,46.55425384,108.58,108.48,6.8717066]
[1644503706092,46.55425384,108.58,108.48,11.25]
[1644503706293,46.55425384,108.58,108.48,11.5]
[1644503706698,25.638353,108.57,108.48,11.25]
[1644503706995,46.6086929,108.56,108.48,11.25]
[1644503707296,46.6086929,108.56,108.45,11.25]
[1644503707698,2.23122154,108.55,108.39,15.30797245]
[1644503707896,107.5694,108.54,108.4,11.25]
[1644503708095,13.8294,108.54,108.38,24.70172733]
[1644503708296,107.8194,108.54,108.38,24.70172733]
[1644503708498,42.13870375,108.53,108.39,34.98479074]
[1644503708695,42.13870375,108.53,108.39,50.84379074]
[1644503708903,42.38870375,108.53,108.39,50.84379074]
[1644503709096,42.38870375,108.53,108.39,46.23479074]
[1644503709300,13.8325,108.52,108.4,1.64955026]
[1644503709498,11.25,108.56,108.42,131.0]
[1644503709798,2.23122154,108.58,108.43,15.858]
[1644503709998,13.5178,108.64,108.43,192.33150504]
[1644503710199,13.5178,108.64,108.44,46.07739774]
[1644503710401,13.8212,108.63,108.46,13.8231]
[1644503710601,13.8212,108.63,108.43,151.178]
[1644503710602,50.19684575,108.63,108.47,11.25]
[1644503710799,0.45,108.62,108.44,11.25]
[1644503710999,13.83721282,108.61,108.44,11.25]
[1644503711201,5.63962116,108.6,108.37,2.58832656]
[1644503711404,2.58721282,108.58,108.39,11.25]
[1644503711699,93.74,108.56,108.39,52.35501134]
[1644503711902,13.8344,108.52,108.39,69.50232006]
[1644503712099,40.24782309,108.51,108.39,86.57779475]
[1644503712300,40.24782309,108.51,108.39,88.22734501]
[1644503712499,40.24782309,108.51,108.4,7.20840514]
[1644503712699,40.24782309,108.51,108.39,55.71066023]
[1644503712700,40.24782309,108.51,108.41,11.25]
[1644503713199,40.24782309,108.51,108.41,44.81692568]
[1644503713399,40.24782309,108.51,108.41,92.44850677]
[1644503713601,40.24782309,108.51,108.41,49.42592568]
[1644503713798,40.24782309,108.51,108.41,44.81692568]
[1644503714602,40.24782309,108.51,108.41,86.11380501]
[1644503714802,40.24782309,108.51,108.41,86.36380501]
[1644503715004,40.24782309,108.51,108.41,92.36380501]
[1644503715603,40.24782309,108.51,108.41,86.36380501]
[1644503715805,40.24782309,108.51,108.41,106.19300501]
[1644503716604,40.24782309,108.51,108.41,83.11753032]
[1644503717905,40.24782309,108.51,108.42,4.609]
[1644503718104,40.24782309,108.51,108.43,14.30218969]
[1644503718306,40.24782309,108.51,108.43,47.86911537]
[1644503718704,40.24782309,108.51,108.43,44.81692568]
[1644503719105,40.24782309,108.51,108.43,45.06692568]
[1644503719304,40.24782309,108.51,108.43,11.5]
[1644503720710,93.74,108.5,108.37,2.58832656]
[1644503720909,13.8379,108.49,108.36,2.58832656]
[1644503721108,13.8379,108.49,108.33,3.96258569]
[1644503721109,109.601,108.48,108.31,5.19752261]
[1644503721307,140.26013548,108.48,108.31,2.60919605]
[1644503721507,69.54303069,108.47,108.32,42.04787798]
[1644503721709,11.25,108.46,108.32,42.04787798]
[1644503721908,42.75540326,108.44,108.32,42.04787798]
[1644503722108,38.45217149,108.42,108.32,42.04787798]
[1644503723915,38.45217149,108.42,108.34,34.23067603]
[1644503724308,38.45217149,108.42,108.3,35.1074]
[1644503724707,52.29857149,108.42,108.3,11.25]
[1644503724911,52.29857149,108.42,108.26,13.83832656]
[1644503725108,18.09622154,108.41,108.24,13.83832656]
[1644503725310,41.92921405,108.4,108.27,46.37524335]
[1644503725707,41.92921405,108.4,108.28,11.25]
[1644503725909,41.92921405,108.4,108.29,47.45917069]
[1644503726310,41.92921405,108.4,108.29,47.70917069]
[1644503726511,41.92921405,108.4,108.29,49.3588917]
[1644503726913,41.92921405,108.4,108.29,47.70917069]
[1644503729317,41.92921405,108.4,108.3,4.614]
[1644503729519,41.92921405,108.4,108.31,34.97096358]
[1644503730019,41.92921405,108.4,108.31,34.72096358]
[1644503730818,41.92921405,108.4,108.3,4.614]
[1644503731017,55.77831405,108.4,108.3,4.614]
[1644503731219,67.02831405,108.4,108.3,4.614]
[1644503731821,4.614,108.39,108.3,4.614]
[1644503732020,43.29053062,108.38,108.3,4.614]
[1644503732220,43.29053062,108.38,108.27,46.38829692]
[1644503732720,13.853,108.37,108.27,46.38829692]
[1644503732919,40.71197745,108.36,108.27,46.38829692]
[1644503733318,40.71197745,108.36,108.25,23.2493]
[1644503733917,42.94319899,108.36,108.25,23.2493]
[1644503734120,56.79689899,108.36,108.25,23.4993]
[1644503734318,33.957118,108.35,108.23,37.75588975]
[1644503734519,40.49887335,108.34,108.22,9.64878271]
[1644503734719,40.49887335,108.34,108.22,0.024]
[1644503734918,40.49887335,108.34,108.2,0.024]
[1644503735323,40.49887335,108.34,108.2,13.8799]
[1644503735521,40.49887335,108.34,108.22,37.83808096]
[1644503735720,40.49887335,108.34,108.22,42.45508096]
[1644503735922,40.49887335,108.34,108.22,44.35480197]
[1644503736323,40.49887335,108.34,108.22,58.20830197]
[1644503736522,40.49887335,108.34,108.22,38.08808096]
[1644503737322,54.35477335,108.34,108.22,51.94148096]
[1644503737723,54.35477335,108.34,108.22,38.08808096]
[1644503738124,54.35477335,108.34,108.22,42.70508096]
[1644503738724,54.35477335,108.34,108.22,157.00508096]
[1644503738924,13.8524,108.36,108.23,1.64972101]
[1644503739125,46.1724,108.4,108.24,15.867]
[1644503739325,60.0325,108.42,108.24,22.141]
[1644503739527,60.0325,108.42,108.25,23.31446801]
[1644503739725,60.0325,108.42,108.26,15.865]
[1644503739927,42.13498851,108.41,108.27,40.44975002]
[1644503740324,42.13498851,108.41,108.27,40.69975002]
[1644503740725,55.98208851,108.41,108.28,13.8461]
[1644503740926,38.13616598,108.39,108.29,44.79809256]
[1644503741130,13.8471,108.41,108.29,44.79809256]
[1644503741426,15.864,108.49,108.3,11.25]
[1644503741627,46.0096,108.49,108.31,4.612]
[1644503741828,46.0096,108.49,108.32,11.25]
[1644503742025,46.0096,108.49,108.33,4.612]
[1644503742226,13.8387,108.47,108.34,56.02572628]
[1644503742427,41.49576876,108.46,108.34,67.27572628]
[1644503742629,41.49576876,108.46,108.34,67.52572628]
[1644503742830,41.49576876,108.46,108.34,53.68752628]
[1644503743032,43.7269903,108.46,108.34,53.43752628]
[1644503743330,43.7269903,108.46,108.34,42.43752628]
[1644503743529,26.706398,108.45,108.31,78.51457099]
[1644503743738,40.142065,108.45,108.29,4.613]
[1644503743930,50.16417257,108.44,108.25,0.024]
[1644503744130,11.25,108.43,108.26,4.614]
[1644503744329,4.614,108.42,108.25,0.024]
[1644503744532,47.30656126,108.41,108.27,35.44748522]
[1644503745331,47.30656126,108.41,108.27,35.69748522]
[1644503745753,61.15516126,108.41,108.27,49.54538522]
[1644503746455,72.40516126,108.41,108.27,49.54538522]
[1644503747357,72.65516126,108.41,108.27,49.54538522]
[1644503747958,72.65516126,108.41,108.29,39.62806931]
[1644503748161,36.54327778,108.39,108.29,39.62806931]
[1644503748361,50.39097778,108.39,108.28,4.615]
[1644503748560,52.62219932,108.39,108.26,138.1991]
[1644503748760,11.25,108.38,108.25,0.024]
[1644503749362,41.87672473,108.37,108.25,35.07040885]
[1644503749762,41.87672473,108.37,108.25,35.32040885]
[1644503749964,53.12672473,108.37,108.25,35.32040885]
[1644503750765,53.12672473,108.37,108.25,0.024]
[1644503750766,13.8543,108.35,108.25,0.024]
[1644503750965,25.1043,108.35,108.23,0.024]
[1644503751163,25.1043,108.35,108.21,0.024]
[1644503751364,13.8543,108.35,108.22,15.891]
[1644503751564,41.87672473,108.37,108.23,4.25850058]
[1644503751764,42.01737366,108.34,108.24,2.61268522]
[1644503751968,42.01737366,108.34,108.25,40.04324878]
[1644503752366,42.01737366,108.34,108.23,13.877]
[1644503752567,42.01737366,108.34,108.23,0.25]
[1644503752765,42.01737366,108.34,108.22,49.73382656]
[1644503752966,2.23122154,108.33,108.22,47.1455]
[1644503753167,2.23122154,108.33,108.22,0.274]
[1644503753369,36.86764544,108.32,108.22,35.80605562]
[1644503753567,36.86764544,108.32,108.23,0.024]
[1644503753766,36.86764544,108.32,108.22,40.65005562]
[1644503753968,13.8527,108.35,108.22,40.65005562]
[1644503754167,13.8527,108.35,108.23,2.61232656]
[1644503754466,13.8527,108.35,108.24,8.85114192]
[1644503754666,13.8527,108.35,108.25,2.61356515]
[1644503754866,35.67610168,108.34,108.26,39.85538478]
[1644503755066,35.67610168,108.34,108.26,44.47138478]
[1644503755266,49.52960168,108.34,108.26,44.72138478]
[1644503755467,49.52960168,108.34,108.26,40.10538478]
[1644503756267,49.52960168,108.34,108.24,4.64]
[1644503756470,49.52960168,108.34,108.24,4.616]
[1644503756667,49.52960168,108.34,108.22,176.17912656]
[1644503756870,49.52960168,108.34,108.22,166.9578]
[1644503757270,49.52960168,108.34,108.23,44.35856361]
[1644503757470,49.52960168,108.34,108.24,2.61419199]
[1644503757670,49.52960168,108.34,108.25,41.2428427]
[1644503757871,49.52960168,108.34,108.25,36.6258427]
[1644503759871,49.52960168,108.34,108.25,36.8758427]
[1644503760071,49.52960168,108.34,108.25,41.4928427]
[1644503760673,13.8512,108.36,108.25,41.4928427]
[1644503760876,46.1648,108.4,108.26,13.86443125]
[1644503761079,69.0513,108.46,108.27,5.20275781]
[1644503761373,13.988,108.46,108.28,179.04832656]
[1644503761575,13.988,108.46,108.29,5.20275781]
[1644503761873,46.9220244,108.45,108.35,43.12089883]
[1644503762071,2.58721282,108.5,108.36,11.25]
[1644503762273,74.26181282,108.51,108.36,19.45]
[1644503762472,2.58721282,108.52,108.36,34.37815336]
[1644503762672,2.58721282,108.53,108.37,6.25581536]
[1644503762872,16.33111282,108.54,108.37,12.50581536]
[1644503763073,45.70920353,108.52,108.39,39.92521483]
[1644503763272,48.29641635,108.52,108.39,39.92521483]
[1644503763473,45.70920353,108.52,108.39,39.92521483]
[1644503763678,2.23122154,108.51,108.39,40.17521483]
[1644503763972,40.05729424,108.5,108.39,11.25]
[1644503764273,101.547891,108.49,108.32,7.19832656]
[1644503764473,4.612,108.48,108.3,7.20032656]
[1644503764671,2.23122154,108.48,108.31,11.25]
[1644503764872,2.23122154,108.48,108.32,4.612]
[1644503765071,13.839,108.46,108.33,11.25]
[1644503765272,44.54260933,108.45,108.35,38.44673091]
[1644503766073,44.54260933,108.45,108.35,38.69673091]